[Event "Titled Tuesday Blitz June 21 Early 2022"]
[White "Yilmaz, Mustafa"]
[Black "Rustemov, Alexander"]
[WhiteFideId "6302718"]
[BlackFideId "4119002"]
[WhiteElo "2568"]
[BlackElo "2753"]
[Result "1-0"]
[Round "04"]
[TimeControl "180+1"]
[Date "2022.06.21"]
[WhiteClock "0:00:23"]
[BlackClock "0:00:02"]

1. d4 {[%clk 0:03:00]}  d5 {[%clk 0:02:59]} 2. c4 {[%clk 0:03:00]}  dxc4 {[%clk 0:02:57]} 3. Nf3 {[%clk 0:02:58]}  Nf6 {[%clk 0:02:56]} 4. e3 {[%clk 0:02:59]}  e6 {[%clk 0:02:56]} 5. Bxc4 {[%clk 0:02:59]}  c5 {[%clk 0:02:56]} 6. O-O {[%clk 0:03:00]}  a6 {[%clk 0:02:55]} 7. Be2 {[%clk 0:02:55]}  Nbd7 {[%clk 0:02:47]} 8. Nbd2 {[%clk 0:02:41]}  b6 {[%clk 0:02:47]} 9. Nc4 {[%clk 0:02:37]}  Bb7 {[%clk 0:02:41]} 10. dxc5 {[%clk 0:02:37]}  Bxc5 {[%clk 0:02:39]} 11. Nd6+ {[%clk 0:02:37]}  Bxd6 {[%clk 0:02:37]} 12. Qxd6 {[%clk 0:02:38]}  Ne4 {[%clk 0:02:25]} 13. Qd1 {[%clk 0:02:17]}  Rc8 {[%clk 0:02:19]} 14. Nd4 {[%clk 0:02:16]}  O-O {[%clk 0:02:16]} 15. f3 {[%clk 0:02:16]}  Nef6 {[%clk 0:02:05]} 16. e4 {[%clk 0:02:15]}  Ne5 {[%clk 0:01:57]} 17. Bf4 {[%clk 0:01:54]}  Nc4 {[%clk 0:01:54]} 18. b3 {[%clk 0:01:40]}  e5 {[%clk 0:01:52]} 19. Bc1 {[%clk 0:01:12]}  Nd6 {[%clk 0:01:32]} 20. Nc2 {[%clk 0:01:13]}  Qc7 {[%clk 0:01:22]} 21. Bd3 {[%clk 0:01:11]}  Nd7 {[%clk 0:01:18]} 22. Ne3 {[%clk 0:00:59]}  Nc5 {[%clk 0:01:17]} 23. Ba3 {[%clk 0:00:43]}  Nxd3 {[%clk 0:01:13]} 24. Qxd3 {[%clk 0:00:42]}  Rfd8 {[%clk 0:01:10]} 25. Rac1 {[%clk 0:00:42]}  Qb8 {[%clk 0:01:09]} 26. Rxc8 {[%clk 0:00:41]}  Bxc8 {[%clk 0:01:08]} 27. Rd1 {[%clk 0:00:40]}  f6 {[%clk 0:00:15]} 28. Bxd6 {[%clk 0:00:39]}  Qa7 {[%clk 0:00:15]} 29. Qc4+ {[%clk 0:00:38]}  Qf7 {[%clk 0:00:12]} 30. Qxf7+ {[%clk 0:00:37]}  Kxf7 {[%clk 0:00:12]} 31. Bc7 {[%clk 0:00:37]}  Rxd1+ {[%clk 0:00:12]} 32. Nxd1 {[%clk 0:00:38]}  b5 {[%clk 0:00:13]} 33. Ba5 {[%clk 0:00:33]}  Ke6 {[%clk 0:00:13]} 34. Kf2 {[%clk 0:00:33]}  g6 {[%clk 0:00:14]} 35. Ke3 {[%clk 0:00:28]}  f5 {[%clk 0:00:15]} 36. Nf2 {[%clk 0:00:28]}  Bb7 {[%clk 0:00:14]} 37. Nd3 {[%clk 0:00:29]}  Kd6 {[%clk 0:00:14]} 38. Bb4+ {[%clk 0:00:29]}  Kc7 {[%clk 0:00:10]} 39. exf5 {[%clk 0:00:27]}  e4 {[%clk 0:00:05]} 40. fxg6 {[%clk 0:00:23]}  exf3 {[%clk 0:00:02]} 41. gxh7 {[%clk 0:00:23]}  fxg2 {[%clk 0:00:02]} 42. Kf2 {[%clk 0:00:23]} 1-0


[Site "https://www.chess.com"]

[Event "Titled Tuesday Blitz June 21 Early 2022"]
[White "Adewumi, Tanitoluwa"]
[Black "Flynn, Jacob"]
[WhiteFideId "30966396"]
[BlackFideId "2509393"]
[WhiteElo "2545"]
[BlackElo "1896"]
[Result "0-1"]
[Round "05"]
[TimeControl "180+1"]
[Date "2022.06.22"]
[WhiteClock "0:00:03"]
[BlackClock "0:00:03"]

1. e4 {[%clk 0:03:00]}  e5 {[%clk 0:02:56]} 2. Nf3 {[%clk 0:03:00]}  Nc6 {[%clk 0:02:57]} 3. Bc4 {[%clk 0:02:57]}  Nf6 {[%clk 0:02:56]} 4. d3 {[%clk 0:02:53]}  Bc5 {[%clk 0:02:48]} 5. O-O {[%clk 0:02:52]}  d6 {[%clk 0:02:42]} 6. h3 {[%clk 0:02:52]}  a6 {[%clk 0:02:42]} 7. Re1 {[%clk 0:02:51]}  Ba7 {[%clk 0:02:41]} 8. a4 {[%clk 0:02:48]}  h6 {[%clk 0:02:41]} 9. c3 {[%clk 0:02:46]}  g5 {[%clk 0:02:41]} 10. Nh2 {[%clk 0:02:27]}  Rg8 {[%clk 0:02:20]} 11. g4 {[%clk 0:01:40]}  Qe7 {[%clk 0:02:06]} 12. Be3 {[%clk 0:01:37]}  h5 {[%clk 0:02:02]} 13. Bxa7 {[%clk 0:01:32]}  Nxa7 {[%clk 0:02:03]} 14. Nd2 {[%clk 0:01:23]}  Nc6 {[%clk 0:01:59]} 15. Ndf1 {[%clk 0:01:20]}  hxg4 {[%clk 0:01:50]} 16. hxg4 {[%clk 0:01:12]}  Be6 {[%clk 0:01:51]} 17. b4 {[%clk 0:00:58]}  Nd8 {[%clk 0:01:48]} 18. Ng3 {[%clk 0:00:44]}  Bxc4 {[%clk 0:01:48]} 19. dxc4 {[%clk 0:00:45]}  Ne6 {[%clk 0:01:48]} 20. Nf5 {[%clk 0:00:44]}  Qd7 {[%clk 0:01:48]} 21. Nf1 {[%clk 0:00:36]}  O-O-O {[%clk 0:01:31]} 22. b5 {[%clk 0:00:33]}  a5 {[%clk 0:01:30]} 23. b6 {[%clk 0:00:34]}  cxb6 {[%clk 0:01:25]} 24. N1e3 {[%clk 0:00:34]}  Kb8 {[%clk 0:01:20]} 25. Rb1 {[%clk 0:00:30]}  Qc7 {[%clk 0:01:18]} 26. Rb5 {[%clk 0:00:16]}  Nxe4 {[%clk 0:01:08]} 27. Nd5 {[%clk 0:00:13]}  Qxc4 {[%clk 0:01:08]} 28. Nxb6 {[%clk 0:00:11]}  Qc6 {[%clk 0:00:51]} 29. Ne7 {[%clk 0:00:11]}  Qxc3 {[%clk 0:00:20]} 30. Rxe4 {[%clk 0:00:09]}  Rh8 {[%clk 0:00:20]} 31. Nbd5 {[%clk 0:00:05]}  Qh3 {[%clk 0:00:17]} 32. Rxb7+ {[%clk 0:00:05]}  Ka8 {[%clk 0:00:13]} 33. Rb8+ {[%clk 0:00:01]}  Rxb8 {[%clk 0:00:11]} 34. f3 {[%clk 0:00:01]}  Qh1+ {[%clk 0:00:05]} 35. Kf2 {[%clk 0:00:02]}  Rb2+ {[%clk 0:00:03]} 36. Qe2 {[%clk 0:00:01]}  Rh2+ {[%clk 0:00:02]} 37. Ke3 {[%clk 0:00:02]}  Rhxe2+ {[%clk 0:00:02]} 38. Kd3 {[%clk 0:00:03]}  Rxe4 {[%clk 0:00:02]} 39. fxe4 {[%clk 0:00:02]}  Qd1+ {[%clk 0:00:03]} 40. Kc3 {[%clk 0:00:03]}  Qc2# {[%clk 0:00:03]} 0-1


[Site "https://www.chess.com"]

[Event "Titled Tuesday Blitz June 21 Early 2022"]
[White "Aldokhin, Ivan"]
[Black "Petrovic, Aleksa"]
[WhiteFideId "24115720"]
[BlackFideId "967629"]
[WhiteElo "2231"]
[BlackElo "2117"]
[Result "1-0"]
[Round "05"]
[TimeControl "180+1"]
[Date "2022.06.22"]
[WhiteClock "0:00:12"]
[BlackClock "0:00:01"]

1. d4 {[%clk 0:03:00]}  Nf6 {[%clk 0:02:58]} 2. c4 {[%clk 0:03:01]}  e6 {[%clk 0:02:58]} 3. Nc3 {[%clk 0:03:01]}  Bb4 {[%clk 0:02:58]} 4. e3 {[%clk 0:03:01]}  c5 {[%clk 0:02:57]} 5. Ne2 {[%clk 0:02:53]}  b6 {[%clk 0:02:57]} 6. a3 {[%clk 0:02:40]}  Ba5 {[%clk 0:02:57]} 7. Rb1 {[%clk 0:02:19]}  Na6 {[%clk 0:02:57]} 8. d5 {[%clk 0:02:08]}  Bb7 {[%clk 0:02:36]} 9. Nf4 {[%clk 0:02:07]}  Ne4 {[%clk 0:02:19]} 10. Qc2 {[%clk 0:02:00]}  Nxc3 {[%clk 0:02:18]} 11. bxc3 {[%clk 0:02:00]}  Qf6 {[%clk 0:02:05]} 12. Bd2 {[%clk 0:01:58]}  g6 {[%clk 0:01:36]} 13. Be2 {[%clk 0:01:54]}  Nc7 {[%clk 0:01:26]} 14. e4 {[%clk 0:01:42]}  e5 {[%clk 0:01:20]} 15. Nd3 {[%clk 0:01:37]}  Ba6 {[%clk 0:00:41]} 16. Qa4 {[%clk 0:01:30]}  Qh4 {[%clk 0:00:33]} 17. Nxe5 {[%clk 0:01:19]}  Rd8 {[%clk 0:00:19]} 18. O-O {[%clk 0:01:11]}  Qxe4 {[%clk 0:00:13]} 19. Bd3 {[%clk 0:01:00]}  Qh4 {[%clk 0:00:11]} 20. Nf3 {[%clk 0:00:42]}  Qh5 {[%clk 0:00:05]} 21. Bg5 {[%clk 0:00:32]}  O-O {[%clk 0:00:03]} 22. Bxd8 {[%clk 0:00:30]}  Rxd8 {[%clk 0:00:04]} 23. Rfe1 {[%clk 0:00:26]}  Bxc3 {[%clk 0:00:03]} 24. Re7 {[%clk 0:00:20]}  Bf6 {[%clk 0:00:02]} 25. Rxd7 {[%clk 0:00:17]}  Rxd7 {[%clk 0:00:02]} 26. Qxd7 {[%clk 0:00:17]}  Qh6 {[%clk 0:00:01]} 27. Qxc7 {[%clk 0:00:12]} 1-0


[Site "https://www.chess.com"]

[Event "Titled Tuesday Blitz June 21 Early 2022"]
[White "Arpita, Mukherjee"]
[Black "Gubajdullin, Alexei"]
[WhiteFideId "5056403"]
[BlackFideId "4141202"]
[WhiteElo "1934"]
[BlackElo "2280"]
[Result "1/2-1/2"]
[Round "05"]
[TimeControl "180+1"]
[Date "2022.06.22"]
[WhiteClock "0:00:14"]
[BlackClock "0:00:19"]

1. e4 {[%clk 0:03:00]}  g6 {[%clk 0:02:59]} 2. d4 {[%clk 0:02:59]}  Bg7 {[%clk 0:02:58]} 3. Nc3 {[%clk 0:03:00]}  d6 {[%clk 0:02:58]} 4. Be3 {[%clk 0:03:00]}  a6 {[%clk 0:02:56]} 5. Qd2 {[%clk 0:03:00]}  b5 {[%clk 0:02:56]} 6. Nf3 {[%clk 0:03:00]}  Nd7 {[%clk 0:02:56]} 7. Bd3 {[%clk 0:02:59]}  Bb7 {[%clk 0:02:56]} 8. Ne2 {[%clk 0:02:59]}  c5 {[%clk 0:02:54]} 9. c3 {[%clk 0:02:59]}  Ngf6 {[%clk 0:02:53]} 10. Ng3 {[%clk 0:02:58]}  O-O {[%clk 0:02:53]} 11. Bh6 {[%clk 0:02:58]}  cxd4 {[%clk 0:02:50]} 12. cxd4 {[%clk 0:02:57]}  e5 {[%clk 0:02:50]} 13. O-O {[%clk 0:02:52]}  exd4 {[%clk 0:02:48]} 14. Bxg7 {[%clk 0:02:49]}  Kxg7 {[%clk 0:02:48]} 15. Nxd4 {[%clk 0:02:50]}  Nc5 {[%clk 0:02:47]} 16. Rfe1 {[%clk 0:02:26]}  Re8 {[%clk 0:02:46]} 17. f3 {[%clk 0:02:00]}  Qb6 {[%clk 0:02:41]} 18. Kh1 {[%clk 0:01:57]}  Ne6 {[%clk 0:02:18]} 19. Ndf5+ {[%clk 0:01:42]}  gxf5 {[%clk 0:02:13]} 20. Nxf5+ {[%clk 0:01:41]}  Kh8 {[%clk 0:02:13]} 21. Qh6 {[%clk 0:01:41]}  Ng8 {[%clk 0:02:12]} 22. Qh5 {[%clk 0:01:34]}  Ng7 {[%clk 0:01:55]} 23. Qxf7 {[%clk 0:01:27]}  Nxf5 {[%clk 0:01:54]} 24. exf5 {[%clk 0:01:28]}  Rxe1+ {[%clk 0:01:42]} 25. Rxe1 {[%clk 0:01:28]}  Qd4 {[%clk 0:01:40]} 26. Qxb7 {[%clk 0:01:21]}  Rf8 {[%clk 0:01:34]} 27. Be4 {[%clk 0:01:17]}  Nf6 {[%clk 0:01:30]} 28. b3 {[%clk 0:01:10]}  Qf2 {[%clk 0:01:21]} 29. Rg1 {[%clk 0:01:09]}  Rg8 {[%clk 0:01:08]} 30. Qe7 {[%clk 0:01:02]}  Qd4 {[%clk 0:00:48]} 31. Bb1 {[%clk 0:00:47]}  Re8 {[%clk 0:00:45]} 32. Qb7 {[%clk 0:00:41]}  Qc3 {[%clk 0:00:37]} 33. Qf7 {[%clk 0:00:33]}  Re1 {[%clk 0:00:33]} 34. h3 {[%clk 0:00:19]}  Ng8 {[%clk 0:00:28]} 35. Be4 {[%clk 0:00:14]}  Rxg1+ {[%clk 0:00:23]} 36. Kxg1 {[%clk 0:00:15]}  Qc1+ {[%clk 0:00:22]} 37. Kf2 {[%clk 0:00:14]}  Qd2+ {[%clk 0:00:22]} 38. Kg3 {[%clk 0:00:13]}  Qg5+ {[%clk 0:00:20]} 39. Kh2 {[%clk 0:00:13]}  Qf4+ {[%clk 0:00:20]} 40. Kh1 {[%clk 0:00:14]}  Qc1+ {[%clk 0:00:20]} 41. Kh2 {[%clk 0:00:14]}  Qf4+ {[%clk 0:00:19]} 42. Kh1 {[%clk 0:00:14]}  Qc1+ {[%clk 0:00:19]} 43. Kh2 {[%clk 0:00:14]}  Qf4+ {[%clk 0:00:19]} 1/2-1/2


[Site "https://www.chess.com"]

[Event "Titled Tuesday Blitz June 21 Early 2022"]
[White "Artemenko, Oleg"]
[Black "Daeschler, Florian"]
[WhiteFideId "14201798"]
[BlackFideId "20678193"]
[WhiteElo "2287"]
[BlackElo "2221"]
[Result "1-0"]
[Round "05"]
[TimeControl "180+1"]
[Date "2022.06.22"]
[WhiteClock "0:00:15"]
[BlackClock "0:00:02"]

1. e4 {[%clk 0:03:00]}  c5 {[%clk 0:02:59]} 2. Nf3 {[%clk 0:03:00]}  d6 {[%clk 0:02:59]} 3. d4 {[%clk 0:03:00]}  cxd4 {[%clk 0:03:00]} 4. Nxd4 {[%clk 0:03:00]}  Nf6 {[%clk 0:03:01]} 5. Nc3 {[%clk 0:03:00]}  Nc6 {[%clk 0:03:01]} 6. f3 {[%clk 0:02:56]}  e5 {[%clk 0:03:01]} 7. Nb3 {[%clk 0:02:56]}  Be7 {[%clk 0:03:01]} 8. Bg5 {[%clk 0:02:53]}  O-O {[%clk 0:02:53]} 9. Qd2 {[%clk 0:02:53]}  a5 {[%clk 0:02:50]} 10. Bb5 {[%clk 0:02:48]}  Be6 {[%clk 0:02:46]} 11. Bxf6 {[%clk 0:02:38]}  Bxf6 {[%clk 0:02:46]} 12. Rd1 {[%clk 0:02:35]}  Qb6 {[%clk 0:02:27]} 13. Qf2 {[%clk 0:02:27]}  Qxf2+ {[%clk 0:02:23]} 14. Kxf2 {[%clk 0:02:28]}  Rfd8 {[%clk 0:02:24]} 15. a3 {[%clk 0:02:18]}  Na7 {[%clk 0:02:21]} 16. Be2 {[%clk 0:02:13]}  Nc8 {[%clk 0:02:21]} 17. Nd5 {[%clk 0:02:08]}  Bxd5 {[%clk 0:02:15]} 18. Rxd5 {[%clk 0:02:09]}  a4 {[%clk 0:02:12]} 19. Nd2 {[%clk 0:02:05]}  Ne7 {[%clk 0:02:03]} 20. Rd3 {[%clk 0:02:04]}  d5 {[%clk 0:02:03]} 21. exd5 {[%clk 0:02:03]}  Nxd5 {[%clk 0:02:02]} 22. g3 {[%clk 0:02:01]}  Be7 {[%clk 0:01:58]} 23. Rd1 {[%clk 0:02:00]}  Bc5+ {[%clk 0:01:51]} 24. Ke1 {[%clk 0:01:55]}  Ne3 {[%clk 0:01:50]} 25. Rb1 {[%clk 0:01:45]}  Nxc2+ {[%clk 0:01:48]} 26. Kd1 {[%clk 0:01:40]}  Nd4 {[%clk 0:01:42]} 27. Rc1 {[%clk 0:01:38]}  b6 {[%clk 0:01:38]} 28. Ne4 {[%clk 0:01:37]}  Rac8 {[%clk 0:01:30]} 29. Rcc3 {[%clk 0:01:21]}  Be7 {[%clk 0:01:26]} 30. Rxc8 {[%clk 0:01:19]}  Rxc8 {[%clk 0:01:26]} 31. Rc3 {[%clk 0:01:20]}  Rd8 {[%clk 0:01:21]} 32. Ke1 {[%clk 0:01:19]}  f5 {[%clk 0:01:19]} 33. Nd2 {[%clk 0:01:13]}  Bc5 {[%clk 0:01:13]} 34. Nc4 {[%clk 0:01:09]}  Re8 {[%clk 0:01:07]} 35. Ne3 {[%clk 0:01:01]}  Kf7 {[%clk 0:01:03]} 36. Bc4+ {[%clk 0:01:01]}  Kg6 {[%clk 0:01:01]} 37. Nd5 {[%clk 0:00:54]}  e4 {[%clk 0:00:47]} 38. fxe4 {[%clk 0:00:53]}  Rxe4+ {[%clk 0:00:46]} 39. Kf1 {[%clk 0:00:54]}  Re5 {[%clk 0:00:34]} 40. Nf4+ {[%clk 0:00:52]}  Kf6 {[%clk 0:00:34]} 41. h4 {[%clk 0:00:25]}  g6 {[%clk 0:00:33]} 42. Rd3 {[%clk 0:00:23]}  h6 {[%clk 0:00:31]} 43. Nd5+ {[%clk 0:00:20]}  Kg7 {[%clk 0:00:30]} 44. Nc3 {[%clk 0:00:20]}  g5 {[%clk 0:00:15]} 45. hxg5 {[%clk 0:00:20]}  hxg5 {[%clk 0:00:15]} 46. Nxa4 {[%clk 0:00:20]}  f4 {[%clk 0:00:15]} 47. b4 {[%clk 0:00:16]}  b5 {[%clk 0:00:08]} 48. bxc5 {[%clk 0:00:16]}  Re4 {[%clk 0:00:05]} 49. Bd5 {[%clk 0:00:15]}  bxa4 {[%clk 0:00:02]} 50. Bxe4 {[%clk 0:00:15]} 1-0


[Site "https://www.chess.com"]

[Event "Titled Tuesday Blitz June 21 Early 2022"]
[White "Avazkhonov, Alikhon"]
[Black "Polster, Christian"]
[WhiteFideId "14208504"]
[BlackFideId "12965081"]
[WhiteElo "1739"]
[BlackElo "2267"]
[Result "1-0"]
[Round "05"]
[TimeControl "180+1"]
[Date "2022.06.22"]
[WhiteClock "0:02:16"]
[BlackClock "0:01:42"]

1. d4 {[%clk 0:02:43]}  d5 {[%clk 0:02:57]} 2. c4 {[%clk 0:02:42]}  e6 {[%clk 0:02:57]} 3. Nc3 {[%clk 0:02:41]}  c6 {[%clk 0:02:56]} 4. e4 {[%clk 0:02:40]}  dxe4 {[%clk 0:02:56]} 5. Nxe4 {[%clk 0:02:41]}  Bb4+ {[%clk 0:02:56]} 6. Bd2 {[%clk 0:02:41]}  Qxd4 {[%clk 0:02:57]} 7. Bxb4 {[%clk 0:02:41]}  Qxe4+ {[%clk 0:02:57]} 8. Be2 {[%clk 0:02:42]}  Na6 {[%clk 0:02:57]} 9. Bd6 {[%clk 0:02:42]}  e5 {[%clk 0:02:35]} 10. Nf3 {[%clk 0:02:40]}  f6 {[%clk 0:02:28]} 11. O-O {[%clk 0:02:40]}  c5 {[%clk 0:02:13]} 12. Re1 {[%clk 0:02:36]}  Qc6 {[%clk 0:02:10]} 13. Nxe5 {[%clk 0:02:17]}  fxe5 {[%clk 0:02:04]} 14. Bh5+ {[%clk 0:02:16]}  g6 {[%clk 0:01:54]} 15. Bf3 {[%clk 0:02:15]}  Qd7 {[%clk 0:01:50]} 16. Bxe5 {[%clk 0:02:15]}  Qxd1 {[%clk 0:01:42]} 17. Raxd1 {[%clk 0:02:16]} 1-0


[Site "https://www.chess.com"]

[Event "Titled Tuesday Blitz June 21 Early 2022"]
[White "Bethke, Richard"]
[Black "Halkias, Stelios"]
[WhiteFideId "12959243"]
[BlackFideId "4201809"]
[WhiteElo "2512"]
[BlackElo "2453"]
[Result "0-1"]
[Round "05"]
[TimeControl "180+1"]
[Date "2022.06.22"]
[WhiteClock "0:00:55"]
[BlackClock "0:00:39"]

1. e4 {[%clk 0:03:00]}  c5 {[%clk 0:02:59]} 2. Nf3 {[%clk 0:03:00]}  d6 {[%clk 0:03:00]} 3. d4 {[%clk 0:03:01]}  cxd4 {[%clk 0:03:00]} 4. Nxd4 {[%clk 0:03:02]}  Nf6 {[%clk 0:03:00]} 5. Nc3 {[%clk 0:03:02]}  a6 {[%clk 0:03:01]} 6. Be3 {[%clk 0:03:02]}  e5 {[%clk 0:03:00]} 7. Nf3 {[%clk 0:03:02]}  Be7 {[%clk 0:02:58]} 8. Bc4 {[%clk 0:03:02]}  Be6 {[%clk 0:02:58]} 9. Bb3 {[%clk 0:03:00]}  Nc6 {[%clk 0:02:55]} 10. O-O {[%clk 0:03:00]}  O-O {[%clk 0:02:52]} 11. Qe2 {[%clk 0:02:59]}  Na5 {[%clk 0:02:50]} 12. Rfd1 {[%clk 0:02:58]}  Qc8 {[%clk 0:02:40]} 13. Bg5 {[%clk 0:02:53]}  Nc4 {[%clk 0:02:18]} 14. Bxf6 {[%clk 0:02:46]}  Bxf6 {[%clk 0:02:17]} 15. Nd5 {[%clk 0:02:43]}  Bxd5 {[%clk 0:02:16]} 16. Rxd5 {[%clk 0:02:44]}  b5 {[%clk 0:02:07]} 17. Bxc4 {[%clk 0:02:43]}  bxc4 {[%clk 0:02:07]} 18. Rxd6 {[%clk 0:02:43]}  Rb8 {[%clk 0:02:07]} 19. b3 {[%clk 0:02:42]}  cxb3 {[%clk 0:02:05]} 20. axb3 {[%clk 0:02:43]}  Rb4 {[%clk 0:01:45]} 21. Raxa6 {[%clk 0:02:37]}  Qb7 {[%clk 0:01:45]} 22. Nd2 {[%clk 0:02:29]}  Rc8 {[%clk 0:01:41]} 23. c4 {[%clk 0:02:21]}  Bg5 {[%clk 0:01:40]} 24. g3 {[%clk 0:02:11]}  Be7 {[%clk 0:01:37]} 25. c5 {[%clk 0:01:56]}  Bxd6 {[%clk 0:01:34]} 26. cxd6 {[%clk 0:01:55]}  Rd4 {[%clk 0:01:32]} 27. Ra5 {[%clk 0:01:44]}  h6 {[%clk 0:01:15]} 28. Rxe5 {[%clk 0:01:27]}  Rc1+ {[%clk 0:01:07]} 29. Kg2 {[%clk 0:01:26]}  Rc2 {[%clk 0:01:05]} 30. Qf3 {[%clk 0:01:16]}  Rdxd2 {[%clk 0:01:00]} 31. Re8+ {[%clk 0:01:09]}  Kh7 {[%clk 0:00:59]} 32. Qf5+ {[%clk 0:01:03]}  g6 {[%clk 0:00:58]} 33. Qe5 {[%clk 0:01:03]}  Rxf2+ {[%clk 0:00:54]} 34. Kh3 {[%clk 0:00:57]}  Qd7+ {[%clk 0:00:41]} 35. g4 {[%clk 0:00:57]}  Rf3+ {[%clk 0:00:39]} 36. Kh4 {[%clk 0:00:55]}  g5+ {[%clk 0:00:39]} 0-1


[Site "https://www.chess.com"]

[Event "Titled Tuesday Blitz June 21 Early 2022"]
[White "Bortnyk, Mykola"]
[Black "Papasimakopoulos, Alexandros"]
[WhiteFideId "14120836"]
[BlackFideId "4244125"]
[WhiteElo "2582"]
[BlackElo "2340"]
[Result "1-0"]
[Round "05"]
[TimeControl "180+1"]
[Date "2022.06.21"]
[WhiteClock "0:00:16"]
[BlackClock "0:00:08"]

1. e4 {[%clk 0:03:00]}  e6 {[%clk 0:02:59]} 2. d4 {[%clk 0:03:00]}  d5 {[%clk 0:03:00]} 3. Nc3 {[%clk 0:03:00]}  Bb4 {[%clk 0:03:00]} 4. Bd3 {[%clk 0:03:00]}  dxe4 {[%clk 0:02:59]} 5. Bxe4 {[%clk 0:03:01]}  Nf6 {[%clk 0:03:00]} 6. Bf3 {[%clk 0:03:01]}  Nc6 {[%clk 0:02:59]} 7. Ne2 {[%clk 0:02:53]}  e5 {[%clk 0:03:00]} 8. Bxc6+ {[%clk 0:02:29]}  bxc6 {[%clk 0:03:01]} 9. O-O {[%clk 0:02:26]}  e4 {[%clk 0:02:42]} 10. Ng3 {[%clk 0:02:23]}  Bxc3 {[%clk 0:02:41]} 11. bxc3 {[%clk 0:02:24]}  O-O {[%clk 0:02:39]} 12. Re1 {[%clk 0:02:23]}  h6 {[%clk 0:02:37]} 13. Nxe4 {[%clk 0:02:18]}  Nxe4 {[%clk 0:02:38]} 14. Rxe4 {[%clk 0:02:18]}  Bf5 {[%clk 0:02:38]} 15. Re5 {[%clk 0:02:15]}  Bg6 {[%clk 0:02:36]} 16. Qf3 {[%clk 0:02:12]}  Qd7 {[%clk 0:02:33]} 17. Ba3 {[%clk 0:02:03]}  Rfe8 {[%clk 0:02:33]} 18. Rae1 {[%clk 0:02:03]}  Rxe5 {[%clk 0:02:19]} 19. Rxe5 {[%clk 0:02:04]}  Re8 {[%clk 0:02:19]} 20. Bc5 {[%clk 0:01:24]}  Rxe5 {[%clk 0:02:14]} 21. dxe5 {[%clk 0:01:24]}  a6 {[%clk 0:01:59]} 22. Bd4 {[%clk 0:01:13]}  Bxc2 {[%clk 0:01:50]} 23. Qe2 {[%clk 0:01:13]}  Bg6 {[%clk 0:01:18]} 24. Qxa6 {[%clk 0:01:10]}  c5 {[%clk 0:01:17]} 25. Bxc5 {[%clk 0:00:55]}  Qd1+ {[%clk 0:01:16]} 26. Qf1 {[%clk 0:00:55]}  Qc2 {[%clk 0:01:16]} 27. Qa1 {[%clk 0:00:49]}  Be4 {[%clk 0:01:07]} 28. a4 {[%clk 0:00:49]}  Bc6 {[%clk 0:00:59]} 29. a5 {[%clk 0:00:48]}  Qe4 {[%clk 0:00:57]} 30. f3 {[%clk 0:00:48]}  Qxe5 {[%clk 0:00:52]} 31. Bd4 {[%clk 0:00:47]}  Qd5 {[%clk 0:00:33]} 32. a6 {[%clk 0:00:44]}  f6 {[%clk 0:00:27]} 33. a7 {[%clk 0:00:42]}  Ba8 {[%clk 0:00:27]} 34. Qa3 {[%clk 0:00:40]}  Kh7 {[%clk 0:00:22]} 35. Qe7 {[%clk 0:00:37]}  Qc6 {[%clk 0:00:16]} 36. h4 {[%clk 0:00:36]}  h5 {[%clk 0:00:15]} 37. Kf2 {[%clk 0:00:32]}  Qd6 {[%clk 0:00:14]} 38. Qe8 {[%clk 0:00:29]}  Qd5 {[%clk 0:00:14]} 39. Qe7 {[%clk 0:00:26]}  Qd6 {[%clk 0:00:14]} 40. Qf7 {[%clk 0:00:26]}  Qd5 {[%clk 0:00:09]} 41. Qxc7 {[%clk 0:00:26]}  Qa2+ {[%clk 0:00:09]} 42. Kg3 {[%clk 0:00:25]}  Qa1 {[%clk 0:00:09]} 43. Bxf6 {[%clk 0:00:18]}  Qe1+ {[%clk 0:00:08]} 44. Kh2 {[%clk 0:00:18]}  Kg6 {[%clk 0:00:06]} 45. Qxg7+ {[%clk 0:00:18]}  Kf5 {[%clk 0:00:07]} 46. Qg5+ {[%clk 0:00:17]}  Ke6 {[%clk 0:00:06]} 47. Bd4 {[%clk 0:00:16]}  Bxf3 {[%clk 0:00:06]} 48. Qf6+ {[%clk 0:00:16]}  Kd5 {[%clk 0:00:06]} 49. Qxf3+ {[%clk 0:00:17]}  Kc4 {[%clk 0:00:07]} 50. a8=Q {[%clk 0:00:16]}  Qxh4+ {[%clk 0:00:07]} 51. Qh3 {[%clk 0:00:16]}  Qf4+ {[%clk 0:00:07]} 52. g3 {[%clk 0:00:16]}  h4 {[%clk 0:00:08]} 53. gxf4 {[%clk 0:00:16]} 1-0


[Site "https://www.chess.com"]

[Event "Titled Tuesday Blitz June 21 Early 2022"]
[White "Bortnyk, Olexandr"]
[Black "Tisaj, Domen"]
[WhiteFideId "14120828"]
[BlackFideId "14628708"]
[WhiteElo "2723"]
[BlackElo "2326"]
[Result "1-0"]
[Round "05"]
[TimeControl "180+1"]
[Date "2022.06.21"]
[WhiteClock "0:01:09"]
[BlackClock "0:00:58"]

1. d4 {[%clk 0:03:00]}  d5 {[%clk 0:02:59]} 2. Nc3 {[%clk 0:02:50]}  Nf6 {[%clk 0:02:59]} 3. Bf4 {[%clk 0:02:50]}  c5 {[%clk 0:02:59]} 4. e4 {[%clk 0:02:50]}  dxe4 {[%clk 0:02:57]} 5. dxc5 {[%clk 0:02:50]}  Qxd1+ {[%clk 0:02:48]} 6. Rxd1 {[%clk 0:02:51]}  e5 {[%clk 0:02:37]} 7. Bxe5 {[%clk 0:02:42]}  Bxc5 {[%clk 0:02:37]} 8. Bxf6 {[%clk 0:02:42]}  gxf6 {[%clk 0:02:38]} 9. Nxe4 {[%clk 0:02:43]}  Be7 {[%clk 0:02:33]} 10. Nd6+ {[%clk 0:02:42]}  Bxd6 {[%clk 0:02:34]} 11. Rxd6 {[%clk 0:02:43]}  Be6 {[%clk 0:02:33]} 12. Nf3 {[%clk 0:02:41]}  Ke7 {[%clk 0:02:32]} 13. Rd2 {[%clk 0:02:42]}  a5 {[%clk 0:02:24]} 14. a3 {[%clk 0:02:39]}  Rg8 {[%clk 0:02:21]} 15. g3 {[%clk 0:02:36]}  Nc6 {[%clk 0:02:17]} 16. Bb5 {[%clk 0:02:30]}  Rad8 {[%clk 0:02:13]} 17. Rxd8 {[%clk 0:01:45]}  Rxd8 {[%clk 0:02:12]} 18. O-O {[%clk 0:01:38]}  Nd4 {[%clk 0:02:02]} 19. Nxd4 {[%clk 0:01:35]}  Rxd4 {[%clk 0:02:03]} 20. Bd3 {[%clk 0:01:31]}  h6 {[%clk 0:02:00]} 21. Re1 {[%clk 0:01:30]}  Kd6 {[%clk 0:01:53]} 22. f4 {[%clk 0:01:31]}  Rd5 {[%clk 0:01:46]} 23. Kf2 {[%clk 0:01:25]}  b5 {[%clk 0:01:42]} 24. b4 {[%clk 0:01:23]}  axb4 {[%clk 0:01:33]} 25. axb4 {[%clk 0:01:24]}  Rd4 {[%clk 0:01:33]} 26. Re4 {[%clk 0:01:24]}  Rd5 {[%clk 0:01:31]} 27. Ke3 {[%clk 0:01:19]}  Kc7 {[%clk 0:01:05]} 28. Rd4 {[%clk 0:01:15]}  Rh5 {[%clk 0:01:05]} 29. h4 {[%clk 0:01:13]}  Bg4 {[%clk 0:00:58]} 30. f5 {[%clk 0:01:09]}  Bxf5 {[%clk 0:00:58]} 31. Be2 {[%clk 0:01:09]} 1-0


[Site "https://www.chess.com"]